{"text_format":"1","workbook":"xlsx","n_sheets":1,"sheets":["Microservices"],"not_rendered":{"charts":0,"images":0,"macros":1,"external_links":0,"defined_names":0,"comments":0,"pivot_tables":0},"unopened":[],"bounds":{"document_bytes":16777216,"sheet_cells":100000,"rows_first":2000,"rows_last":500,"rows_between":2000,"halvings":0,"cell_chars":16384,"cell_head_chars":4096},"cells_cut":0,"cells_raw":0,"read":"whole","date_system":"1900"}

{"sheet":"Microservices","index":0,"n_rows":126,"n_cols":9,"rows_kept":126,"cut":false,"hidden":false,"merged":[[86,0,86,8],[93,0,93,8],[116,0,116,8],[1,0,1,8],[51,0,51,8],[59,0,59,8],[69,0,69,8],[99,0,99,8],[102,0,102,8],[105,0,105,8],[82,0,82,8],[0,0,0,8],[3,0,3,8],[2,0,2,5],[17,0,17,8],[46,0,46,8]]}
["MICROSERVICES"]
["Choisissez ici les microservices que vous voudriez proposer sur la plateforme en cochant sur la case à gauche. Ne choisissez celles-ci que dans 2 catégories de compétences MAXIMUM, et même si possible une seule pour rester spécialisé. Vous pouvez utiliser l'astuce dans la formation pour dépasser cette limite intelligemment. \nLes données calculées sont purement indicatives et ont vocation à changer, elles ne correspondent pas à une garantie mais donnent une idée plus ou moins vague des objectifs."]
["Valeur espérée de C.A. mensuel",null,null,null,null,null,{"$f":"SUM(D4:D126)","v":0},"Nombre d'heures estimées mensuelles",{"$f":"IF(G3/33.22<30,30,ROUND(G3/33.22,0))","v":30}]
["Compétences en écriture"]
["Sél.","Service","Valeur",null,"moyenne","référent","Nom du service 35 caractères max, sans \"je vais\" et \"pour 5 €\"","Votre \"plus\" produit","Délais"]
[false,"Rédaction d'articles",{"$f":"ROUND(F6*E6/9.177,-1)","v":1000},{"$f":"IF(A6=TRUE,C6,0)","v":0},21,437]
[false,"Rédaction d'une page de vente",760,{"$f":"IF(A7=TRUE,C7,0)","v":0},100,70]
[false,"Rédaction de fiches produits",650,{"$f":"IF(A8=TRUE,C8,0)","v":0},80,75]
[false,"Rédaction de CV et lettres de motivation",150,{"$f":"IF(A9=TRUE,C9,0)","v":0},40,34]
[false,"Rédaction d'un script vidéo",130,0,55,21]
[false,"Création de slogans",90,0,25,33]
[false,"Rédaction de conditions d'utilisation",70,0,30,20]
[false,"Transcription de fichiers vidéo ou audio",70,0,45,14]
[false,"Service de traduction",820,0,100,75]
[false,"Résumer un écrit",50,0,50,10]
[false,"Écriture de poésies",{"$f":"ROUND(F16*E16/9.177,-1)","v":10},0,10,5]
[false,"Publier un avis sur un livre ou un produit",10,0,10,10]
["Compétences en graphisme"]
[false,"Réaliser un portrait",{"$f":"ROUND(F19*E19/9.177,-1)","v":100},0,25,35]
[false,"Dessiner une caricature",{"$f":"ROUND(F20*E20/9.177,-1)","v":220},0,20,103]
[false,"Créer un avatar",20,0,5,30]
[false,"Dessiner style Manga / Cartoon",40,0,20,20]
[false,"Faire un montage photo",230,0,150,14]
[false,"Réaliser un Pop-Art ou Typo-Art",140,0,40,32]
[false,"Designer un logo",1140,0,70,150]
[false,"Détourer photo",10,0,5,20]
[false,"Transformer en vectoriel",40,0,25,14]
[false,"Créer une couverture de livre",270,0,50,50]
[false,"Créer une couverture de CD",340,0,50,62]
[false,"Créer un objet 3D",30,0,50,5]
[false,"Faire un mockup de produit",330,0,10,300]
[false,"Créer des invitations et faire-parts",30,0,25,10]
[false,"Faire un mockup d'une app ou site",80,0,15,50]
[false,"Créer des modèles de tee-shirts",10,0,10,10]
[false,"Créer des icônes",260,0,120,20]
[false,"Créer un GeoFilter Snapchat",90,0,40,20]
[false,"Créer une couverture Facebook, Youtube, Linkedin…",250,0,50,45]
[false,"Créer une bannière de pub",100,0,20,48]
[false,"Créer un overlay Twitch",80,0,70,11]
[false,"Création de posts phrases de motivation",110,0,10,100]
[false,"Design Facebook Ads",220,0,40,50]
[false,"Créer des flyers et brochures",760,0,100,70]
[false,"Créer des affiches",490,0,100,45]
[false,"Mettre en page des cartes de visite",80,0,50,15]
[false,"Créer la papeterie",270,0,50,50]
[false,"Réaliser des infographies",330,0,50,60]
["Compétences en photographie"]
[false,"Faire des retouches photo",{"$f":"ROUND(F48*E48/9.177,-1)","v":190},0,10,170]
[false,"Coaching",{"$f":"ROUND(F49*E49/9.177,-1)","v":330},0,150,20]
[false,"Vendre des photos libres de droits",80,0,15,50]
[false,"Réaliser des mosaïques photos",30,0,15,20]
["Compétences en développement"]
[false,"Création et customisation de thèmes",{"$f":"ROUND(F53*E53/9.177,-1)","v":350},0,65,50]
[false,"Installer un site Wordpress",{"$f":"ROUND(F54*E54/9.177,-1)","v":980},0,150,60]
[false,"Sécuriser ou réparer un site Wordpress",50,0,10,50]
[false,"Migrer un site Wordpress",80,0,15,50]
[false,"Installer un site Shopify ou Prestashop",1140,0,150,70]
[false,"Créer une application pour mobile",330,0,500,6]
[false,"Création Newsletter",170,0,20,80]
["Compétences en réseaux sociaux"]
[false,"Créer une page fan",{"$f":"ROUND(F61*E61/9.177,-1)","v":300},0,40,68]
[false,"Achat de followers, vues, like…",{"$f":"ROUND(F62*E62/9.177,-1)","v":1120},{"$f":"IF(A62=TRUE,C62,0)","v":0},30,342]
[false,"Twitter sur votre compte",50,0,5,100]
[false,"Community management",1130,0,150,69]
[false,"Gestion de campagne Facebook Ads",1240,0,190,60]
[false,"Donner votre avis complet (ex:Tripadvisor)",40,0,10,40]
[false,"Contribuer sur crowdfunding",10,0,5,10]
[false,"Poster des commentaires sur un blog ou RS",10,0,5,20]
[false,"Création et alimentation d'un compte Pinterest",220,0,100,20]
["Compétences en marketing"]
[false,"Article sur votre blog",{"$f":"ROUND(F71*E71/9.177,-1)","v":330},0,50,60]
[false,"Faire un test produit sur votre blog",110,0,100,10]
[false,"Insérer un lien sur votre blog",160,0,30,50]
[false,"Faire de l'analyse stratégique",650,0,200,30]
[false,"Rechercher un nom de domaine",20,0,10,14]
[false,"Publier des backlinks",650,0,100,60]
[false,"Attaché de presse",490,0,150,30]
[false,"Rechercher des mots-clés pertinents",90,0,10,80]
[false,"Optimiser le SEO d'un site",820,0,150,50]
[false,"Gestion email / newsletter",440,0,100,40]
[false,"Optimiser votre commerce local",540,0,100,50]
[false,"Gérer une campagne Adwords",70,0,30,20]
["Compétences vocales"]
[false,"Voix off",{"$f":"ROUND(F84*E84/9.177,-1)","v":1090},0,100,100]
[false,"Coaching et cours de chant",110,0,50,20]
[false,"Chant personnalisé",20,0,15,10]
["Compétences en vidéo"]
[false,"Faire un montage vidéo",{"$f":"ROUND(F88*E88/9.177,-1)","v":140},0,50,26]
[false,"Faire une intro vidéo ou animation 3D",{"$f":"ROUND(F89*E89/9.177,-1)","v":760},0,100,70]
[false,"Faire une présentation en vidéo",160,0,50,30]
[false,"Créer une animation (tableau blanc ou autres)",1050,0,150,64]
[false,"Créer des infographies en vidéo",490,0,150,30]
[false,"Faire les sous-titrages d'une vidéo",70,0,20,30]
["Compétences en bien-être, sport, cuisine ou spiritualité"]
[false,"Coaching",{"$f":"ROUND(F95*E95/9.177,-1)","v":270},0,50,50]
[false,"Fournir des recettes",{"$f":"ROUND(F96*E96/9.177,-1)","v":10},0,10,10]
[false,"Donner des conseils personnalisés",20,0,10,20]
[false,"Guider des séances (méditation, yoga…)",50,0,50,10]
[false,"Voyance et astrologie",230,0,50,43]
["Compétences musicales"]
[false,"Composition",{"$f":"ROUND(F101*E101/9.177,-1)","v":240},{"$f":"IF(A101=TRUE,C101,0)","v":0},100,22]
[false,"Fournir des musiques libres de droits",10,0,5,10]
["Compétences informatiques"]
[false,"Assistance informatique / nettoyage / optimisation",{"$f":"ROUND(F104*E104/9.177,-1)","v":160},0,15,100]
[false,"Conversion de fichiers",{"$f":"ROUND(F105*E105/9.177,-1)","v":10},0,5,20]
["Aucune compétence particulière"]
[false,"Assistant virtuel",{"$f":"ROUND(F107*E107/9.177,-1)","v":220},0,100,20]
[false,"Photos sexy",{"$f":"ROUND(F108*E108/9.177,-1)","v":60},0,10,54]
[false,"Vidéos drôles et blagues",130,0,10,120]
[false,"Test en vidéo d'apps, de sites ou de jeu vidéo",40,0,10,40]
[false,"Vendre des produits PLR",30,0,5,51]
[false,"Faire des guides de réparation",50,0,5,100]
[false,"Vente d'adresses email",170,0,30,51]
[false,"Vendre des formations en PDF ou vidéo (grâce à PLR)",220,0,20,100]
[false,"Sous-traiter des services SEO / Réseaux sociaux",650,0,10,600]
[false,"Utilisation de templates pour votre service",440,0,20,200]
["Tes idées de microservices"]
[null,null,null,{"$f":"C118","v":0}]
[null,null,null,0]
[null,null,null,0]
[null,null,null,0]
[null,null,null,0]
[null,null,null,0]
[null,null,null,0]
[null,null,null,0]
[null,null,null,{"$f":"C126","v":0}]